bitfinex/quotes_BTCUSD_20220101
["timestamp","ask_amount","ask_price","bid_price","bid_amount"]
[1641072268791,4.29728173,47448.0,47447.0,0.00047937]
[1641072269638,4.29653301,47448.0,47447.0,0.00047937]
[1641072271142,4.31486369,47448.0,47447.0,0.00047937]
[1641072271343,4.29427327,47448.0,47447.0,0.00047937]
[1641072271639,4.31312481,47448.0,47447.0,0.00047937]
[1641072271840,4.29479413,47448.0,47447.0,0.00047937]
[1641072272239,4.44479413,47448.0,47447.0,0.00047937]
[1641072272640,4.44660354,47448.0,47447.0,0.00047937]
[1641072272840,4.44672866,47448.0,47447.0,0.00047937]
[1641072273587,4.46789407,47448.0,47447.0,0.00047937]
[1641072273786,4.44723312,47448.0,47447.0,0.00047937]
[1641072274586,4.46606099,47448.0,47447.0,0.00047937]
[1641072274885,4.44489558,47448.0,47447.0,0.00047937]
[1641072275485,4.46555202,47448.0,47447.0,0.00047937]
[1641072275687,4.44672415,47448.0,47447.0,0.00047937]
[1641072276687,4.46740259,47448.0,47447.0,0.00047937]
[1641072276886,4.44674615,47448.0,47447.0,0.00047937]
[1641072277535,4.46671538,47448.0,47447.0,0.00047937]
[1641072277735,4.44603694,47448.0,47447.0,0.00047937]
[1641072278636,4.46624624,47448.0,47447.0,0.00047937]
[1641072278836,4.44627701,47448.0,47447.0,0.00047937]
[1641072279536,4.3146979,47448.0,47447.0,0.00047937]
[1641072279736,4.2944886,47448.0,47447.0,0.00047937]
[1641072280536,4.3162434,47448.0,47447.0,0.00047937]
[1641072280737,4.44782251,47448.0,47447.0,0.00047937]
[1641072281682,4.51623488,47448.0,47447.0,0.00047937]
[1641072281885,4.50237293,47448.0,47447.0,0.00047937]
[1641072282582,4.52421682,47448.0,47447.0,0.00047937]
[1641072282782,4.50580445,47448.0,47447.0,0.00047937]
[1641072282982,4.51040445,47448.0,47447.0,0.00047937]
[1641072283581,4.53089317,47448.0,47447.0,0.00047937]
[1641072283782,4.50904928,47448.0,47447.0,0.00047937]
[1641072284184,4.50115643,47448.0,47447.0,0.00047937]
[1641072284632,4.52005834,47448.0,47447.0,0.00047937]
[1641072284833,4.49956962,47448.0,47447.0,0.00047937]
[1641072285635,4.51953586,47448.0,47447.0,0.00047937]
[1641072285834,4.50063395,47448.0,47447.0,0.00047937]
[1641072286637,4.52182582,47448.0,47447.0,0.00047937]
[1641072286836,4.50927021,47448.0,47447.0,0.00047937]
[1641072287634,4.53054823,47448.0,47447.0,0.00047937]
[1641072287834,4.50935636,47448.0,47447.0,0.00047937]
[1641072288684,4.52778024,47448.0,47447.0,0.00047937]
[1641072288886,4.50650222,47448.0,47447.0,0.00047937]
[1641072289687,4.52816299,47448.0,47447.0,0.00047937]
[1641072289883,4.50973911,47448.0,47447.0,0.00047937]
[1641072290084,4.45973911,47448.0,47447.0,0.00047937]
[1641072290284,3.94106554,47448.0,47447.0,0.00047937]
[1641072291084,3.95454312,47448.0,47447.0,0.00047937]
[1641072291286,5.03633245,47448.0,47447.0,0.00047937]
[1641072291687,5.05433421,47448.0,47447.0,0.00047937]
[1641072291886,5.033446,47448.0,47447.0,0.00047937]
[1641072293279,5.05544083,47448.0,47447.0,0.00047937]
[1641072293480,5.03743907,47448.0,47447.0,0.00047937]
[1641072293779,5.0570175,47448.0,47447.0,0.00047937]
[1641072293981,5.03502267,47448.0,47447.0,0.00047937]
[1641072294781,5.05475148,47448.0,47447.0,0.00047937]
[1641072294987,5.03517305,47448.0,47447.0,0.00047937]
[1641072295681,5.05603174,47448.0,47447.0,0.00047937]
[1641072295891,5.03630293,47448.0,47447.0,0.00047937]
[1641072296782,5.05471327,47448.0,47447.0,0.00047937]
[1641072296981,5.03385458,47448.0,47447.0,0.00047937]
[1641072297883,5.0547901,47448.0,47447.0,0.00047937]
[1641072298082,5.03637976,47448.0,47447.0,0.00047937]
[1641072298682,5.05702872,47448.0,47447.0,0.00047937]
[1641072299085,5.0360932,47448.0,47447.0,0.00047937]
[1641072299742,5.05571788,47448.0,47447.0,0.00047937]
[1641072299938,5.03506892,47448.0,47447.0,0.00047937]
[1641072300541,5.04201942,47448.0,47447.0,0.00047937]
[1641072301345,5.06099435,47448.0,47447.0,0.00047937]
[1641072301542,5.04136967,47448.0,47447.0,0.00047937]
[1641072301741,5.0596044,47448.0,47447.0,0.00047937]
[1641072301943,5.04062947,47448.0,47447.0,0.00047937]
[1641072302847,5.05977361,47448.0,47447.0,0.00047937]
[1641072303143,5.04153888,47448.0,47447.0,0.00047937]
[1641072303790,5.06132887,47448.0,47447.0,0.00047937]
[1641072304591,5.02239474,47448.0,47447.0,0.00047937]
[1641072304791,5.04326615,47448.0,47447.0,0.00047937]
[1641072305592,5.03631565,47448.0,47447.0,0.00047937]
[1641072305892,5.05458505,47448.0,47447.0,0.00047937]
[1641072306091,5.03371364,47448.0,47447.0,0.00047937]
[1641072306793,5.0536477,47448.0,47447.0,0.00047937]
[1641072306991,5.0353783,47448.0,47447.0,0.00047937]
[1641072307241,5.0303783,47448.0,47447.0,0.00047937]
[1641072307845,5.05013553,47448.0,47447.0,0.00047937]
[1641072308145,5.03595801,47448.0,47447.0,0.00047937]
[1641072309542,5.05499987,47448.0,47447.0,0.00047937]
[1641072310342,5.07529668,47448.0,47447.0,0.00047937]
[1641072310542,5.03649759,47448.0,47447.0,0.00047937]
[1641072310991,5.03483707,47448.0,47447.0,0.00047937]
[1641072311388,5.02908053,47448.0,47447.0,0.00047937]
[1641072311887,5.0504434,47448.0,47447.0,0.00047937]
[1641072312088,5.03180711,47448.0,47447.0,0.00047937]
[1641072312887,5.05342025,47448.0,47447.0,0.00047937]
[1641072313093,5.03205738,47448.0,47447.0,0.00047937]
[1641072314089,5.03205738,47448.0,47440.0,0.00044]
[1641072314289,0.2108634,47445.0,47440.0,0.00044]
[1641072314488,0.173957,47444.0,47441.0,0.00014607]
[1641072314739,0.59863547,47443.0,47441.0,0.00014607]
[1641072314941,0.441241,47442.0,47441.0,0.00014607]
[1641072315742,1.03987647,47442.0,47441.0,0.00014607]
[1641072315944,1.06115569,47442.0,47441.0,0.00014607]
[1641072316141,0.46252022,47442.0,47441.0,0.00014607]
[1641072317544,0.48277149,47442.0,47441.0,0.00014607]
[1641072317743,0.46149227,47442.0,47441.0,0.00014607]
[1641072317943,0.48130217,47442.0,47441.0,0.00014607]
[1641072318146,0.7910509,47442.0,47441.0,0.00014607]
[1641072318404,0.8410509,47442.0,47441.0,0.00014607]
[1641072318697,0.56117117,47442.0,47441.0,0.00014607]
[1641072318894,0.58220336,47442.0,47441.0,0.00014607]
[1641072319094,0.61239346,47442.0,47441.0,0.00014607]
[1641072319996,0.63162734,47442.0,47441.0,0.00014607]
[1641072320197,0.61059515,47442.0,47441.0,0.00014607]
[1641072320995,1.11043357,47442.0,47441.0,0.00014607]
[1641072321199,1.09119969,47442.0,47441.0,0.00014607]
[1641072321396,1.04119969,47442.0,47441.0,0.00014607]
[1641072321597,0.14196845,47442.0,47441.0,0.00014607]
[1641072321997,0.16302254,47442.0,47441.0,0.00014607]
[1641072322242,0.61979589,47442.0,47441.0,0.00014607]
[1641072323141,0.02069825,47442.0,47441.0,0.00014607]
[1641072324140,0.121241,47442.0,47441.0,0.00014607]
[1641072327891,0.481241,47442.0,47441.0,0.00014607]
[1641072328490,0.121241,47442.0,47441.0,0.00014607]
[1641072328893,0.461241,47442.0,47441.0,0.00014607]
[1641072329092,0.48309403,47442.0,47441.0,0.00014607]
[1641072329939,0.50227489,47442.0,47441.0,0.00014607]
[1641072330237,0.4805312,47442.0,47441.0,0.00014607]
[1641072331038,0.1603732,47442.0,47441.0,0.00014607]
[1641072331239,0.14119234,47442.0,47441.0,0.00014607]
[1641072332240,0.12135034,47442.0,47441.0,0.00014607]
[1641072332939,0.56135034,47442.0,47441.0,0.00014607]
[1641072334793,0.58011806,47442.0,47441.0,0.00014607]
[1641072335392,0.12135034,47442.0,47441.0,0.00014607]
[1641072335591,0.14100146,47442.0,47441.0,0.00014607]
[1641072336995,0.12135034,47442.0,47441.0,0.00014607]
[1641072338667,0.00010934,47442.0,47441.0,0.00014607]
[1641072339767,0.43010934,47442.0,47441.0,0.00014607]
[1641072339967,1.15025401,47442.0,47441.0,0.00014607]
[1641072340369,0.55135034,47442.0,47441.0,0.00014607]
[1641072341214,0.57061224,47442.0,47441.0,0.00014607]
[1641072342095,0.59104892,47442.0,47441.0,0.00014607]
[1641072342294,0.57178702,47442.0,47441.0,0.00014607]
[1641072342695,0.14185989,47442.0,47441.0,0.00014607]
[1641072343096,0.16301034,47442.0,47441.0,0.00014607]
[1641072343298,0.14257366,47442.0,47441.0,0.00014607]
[1641072343695,0.57257366,47442.0,47441.0,0.00014607]
[1641072344395,0.55142321,47442.0,47440.0,0.00044]
[1641072344641,0.92985157,47441.0,47440.0,0.00044]
[1641072345045,0.92985157,47441.0,47440.0,0.00060433]
[1641072346143,0.95105832,47441.0,47440.0,0.00060433]
[1641072347146,0.97258697,47441.0,47440.0,0.00060433]
[1641072347347,0.95138022,47441.0,47440.0,0.00060433]
[1641072348247,0.96944189,47441.0,47440.0,0.00060433]
[1641072348503,0.94791324,47441.0,47440.0,0.00060433]
[1641072349306,0.94902563,47441.0,47440.0,0.00060433]
[1641072349504,1.04902563,47441.0,47440.0,0.00060433]
[1641072349705,1.97122563,47441.0,47440.0,0.00060433]
[1641072350006,2.80931458,47441.0,47440.0,0.00060433]
[1641072350203,2.82960027,47441.0,47440.0,0.00060433]
[1641072350406,2.82960027,47441.0,47438.0,8.433e-05]
[1641072350407,1.39,47440.0,47438.0,8.433e-05]
[1641072350608,1.39,47440.0,47433.0,0.00044]
[1641072350609,0.121241,47436.0,47433.0,0.00044]
[1641072350806,0.821241,47434.0,47423.0,0.00044]
[1641072351005,0.05630167,47436.0,47423.0,0.00044]
[1641072351006,1.463441,47433.0,47423.0,0.00044]
[1641072351405,1.563441,47433.0,47432.0,0.00047606]
[1641072352005,2.57167708,47433.0,47432.0,0.00047606]
[1641072352248,2.59241141,47433.0,47432.0,0.00047606]
[1641072353251,2.61311508,47433.0,47432.0,0.00047606]
[1641072353451,2.59238075,47433.0,47432.0,0.00047606]
[1641072354356,2.6122666,47433.0,47432.0,0.00047606]
[1641072354553,2.59156293,47433.0,47432.0,0.00047606]
[1641072355455,2.58976727,47433.0,47432.0,0.00047606]
[1641072356290,2.61056905,47433.0,47432.0,0.00047606]
[1641072356792,1.46056905,47433.0,47432.0,0.00047606]
[1641072356996,1.31056905,47433.0,47432.0,0.00047606]
[1641072357193,1.17167708,47433.0,47432.0,0.00047606]
[1641072357396,1.19348488,47433.0,47432.0,0.00047606]
[1641072357996,0.1852488,47433.0,47432.0,0.00047606]
[1641072358196,0.1649964,47433.0,47432.0,0.00047606]
[1641072358396,0.0219476,47433.0,47432.0,0.00047606]
[1641072358596,0.3919476,47433.0,47432.0,0.00047606]
[1641072358996,0.6019476,47433.0,47432.0,0.00047606]
[1641072359398,0.59884423,47433.0,47432.0,0.00047606]
[1641072360041,0.22884423,47433.0,47432.0,0.00047606]
[1641072360238,0.84885301,47433.0,47432.0,0.00047606]
[1641072360441,0.83000878,47433.0,47432.0,0.00047606]
[1641072360938,0.23112139,47433.0,47432.0,0.00047606]
[1641072361339,0.25018364,47433.0,47432.0,0.00047606]
[1641072361541,0.22906225,47433.0,47432.0,0.00047606]
[1641072362543,0.21,47433.0,47432.0,0.00047606]
[1641072366490,0.881241,47433.0,47432.0,0.00047606]
[1641072367346,0.90284163,47433.0,47432.0,0.00047606]
[1641072368447,0.92174807,47433.0,47432.0,0.00047606]
[1641072368647,0.90014744,47433.0,47432.0,0.00047606]
[1641072370049,0.92055904,47433.0,47432.0,0.00047606]
[1641072370251,0.35175467,47433.0,47432.0,0.00047606]
[1641072370451,0.81223793,47433.0,47432.0,0.00047606]
[1641072370750,0.79182633,47433.0,47432.0,0.00047606]
[1641072372094,0.79087693,47433.0,47432.0,0.00047606]
[1641072373098,0.8099899,47433.0,47432.0,0.00047606]
[1641072373395,0.81190266,47433.0,47432.0,0.00047606]
[1641072373595,0.79278969,47433.0,47432.0,0.00047606]
[1641072375048,0.81392619,47433.0,47432.0,0.00047606]
[1641072375242,0.79247957,47433.0,47432.0,0.00047606]
[1641072375443,0.8114241,47433.0,47432.0,0.00047606]
[1641072375642,0.7902876,47433.0,47432.0,0.00047606]
[1641072376443,0.8083998,47433.0,47432.0,0.00047606]
[1641072376644,0.78945527,47433.0,47432.0,0.00047606]
[1641072377444,0.809749,47433.0,47432.0,0.00047606]
[1641072377647,0.7916368,47433.0,47432.0,0.00047606]
[1641072378498,0.81222627,47433.0,47432.0,0.00047606]
[1641072378696,0.79193254,47433.0,47432.0,0.00047606]
[1641072379296,1.16193254,47433.0,47432.0,0.00047606]
[1641072379496,1.18230636,47433.0,47432.0,0.00047606]
[1641072379697,1.16171689,47433.0,47432.0,0.00047606]
[1641072380398,1.1835075,47433.0,47432.0,0.00047606]
[1641072380701,1.16313368,47433.0,47432.0,0.00047606]
[1641072381298,1.16313368,47433.0,47432.0,0.00033]
[1641072381499,1.18386047,47433.0,47432.0,0.00033]
[1641072381699,1.16206986,47433.0,47432.0,0.00033]
[1641072382347,1.18085516,47433.0,47432.0,0.00033]
[1641072382548,1.16012837,47433.0,47432.0,0.00033]
[1641072383547,1.18018243,47433.0,47432.0,0.00033]
[1641072383747,1.16139713,47433.0,47432.0,0.00033]
[1641072384149,0.79139713,47433.0,47432.0,0.00033]
[1641072384347,1.12139713,47433.0,47432.0,0.00033]
[1641072384546,1.14015233,47433.0,47432.0,0.00033]
[1641072384748,0.79009827,47433.0,47432.0,0.00033]
[1641072385549,0.81047326,47433.0,47432.0,0.00033]
[1641072385751,0.79171806,47433.0,47432.0,0.00033]
[1641072386398,1.24277649,47433.0,47432.0,0.00033]
[1641072386799,1.2224015,47433.0,47432.0,0.00033]
[1641072387199,1.5324015,47433.0,47432.0,0.00033]
[1641072387401,1.55262684,47433.0,47432.0,0.00033]
[1641072387600,2.61885908,47433.0,47432.0,0.00033]
[1641072388201,2.96352057,47433.0,47432.0,0.00033]
[1641072388401,2.98323141,47433.0,47432.0,0.00033]
[1641072388602,2.96300607,47433.0,47432.0,0.00033]
[1641072388802,3.11300607,47433.0,47432.0,0.00033]
[1641072389403,3.13435085,47433.0,47432.0,0.00033]
[1641072389646,3.11464001,47433.0,47431.0,0.00122]
[1641072389850,1.63337536,47432.0,47424.0,0.0087446]
[1641072390047,0.15,47427.0,47424.0,0.0087446]
[1641072390247,0.651241,47426.0,47425.0,0.00027386]
[1641072390447,0.801241,47426.0,47425.0,0.00027386]
[1641072390655,0.651241,47426.0,47417.0,0.00044]
[1641072390850,0.32235864,47423.0,47416.0,1.13072756]
[1641072391048,0.32235864,47423.0,47419.0,9.129e-05]
[1641072391648,0.32235864,47423.0,47420.0,0.338735]
[1641072391849,0.052729,47422.0,47420.0,0.391464]
[1641072392052,0.047729,47422.0,47420.0,0.391464]
[1641072395503,0.047729,47422.0,47421.0,0.00079552]
[1641072396504,0.16897,47422.0,47421.0,0.00079552]
[1641072399454,0.047729,47422.0,47421.0,0.00079552]
[1641072400256,0.257729,47422.0,47421.0,0.00079552]
[1641072400459,0.37897,47422.0,47421.0,0.00079552]
[1641072401796,0.39797965,47422.0,47421.0,0.00079552]
[1641072402597,0.41774409,47422.0,47421.0,0.00079552]
[1641072402795,0.39873444,47422.0,47421.0,0.00079552]
[1641072403698,0.41921777,47422.0,47421.0,0.00079552]
[1641072404748,0.39931826,47422.0,47421.0,0.00079552]
[1641072405147,0.72931826,47422.0,47421.0,0.00079552]
[1641072405646,0.7497581,47422.0,47421.0,0.00079552]
[1641072405846,0.72940984,47422.0,47421.0,0.00079552]
[1641072406647,0.74916264,47422.0,47421.0,0.00079552]
[1641072406846,0.3987228,47422.0,47421.0,0.00079552]
[1641072407747,0.40002717,47422.0,47421.0,0.00079552]
[1641072408600,0.41809262,47422.0,47421.0,0.00079552]
[1641072408803,0.39703545,47422.0,47421.0,0.00079552]
[1641072409001,0.80703545,47422.0,47421.0,0.00079552]
[1641072409602,0.90703545,47422.0,47421.0,0.00079552]
[1641072409802,0.92700354,47422.0,47421.0,0.00079552]
[1641072410002,0.90893809,47422.0,47421.0,0.00079552]
[1641072410204,0.80893809,47422.0,47421.0,0.00079552]
[1641072410603,0.82695772,47422.0,47421.0,0.00079552]
[1641072410803,0.80698963,47422.0,47421.0,0.00079552]
[1641072411004,0.39698963,47422.0,47421.0,0.00079552]
[1641072411204,0.39708321,47422.0,47421.0,0.00079552]
[1641072411704,0.4177799,47422.0,47421.0,0.00079552]
[1641072411906,0.39976027,47422.0,47421.0,0.00079552]
[1641072412150,0.74976027,47422.0,47421.0,0.00079552]
[1641072412752,0.77138219,47422.0,47421.0,0.00079552]
[1641072412952,0.7506855,47422.0,47421.0,0.00079552]
[1641072413554,0.8506855,47422.0,47421.0,0.00079552]
[1641072413753,0.8706058,47422.0,47421.0,0.00079552]
[1641072413953,0.84898388,47422.0,47421.0,0.00079552]
[1641072414754,0.87064746,47422.0,47421.0,0.00079552]
[1641072414954,1.30072716,47422.0,47421.0,0.00079552]
[1641072415154,1.76105665,47422.0,47421.0,0.00079552]
[1641072415556,1.81105665,47422.0,47421.0,0.00079552]
[1641072415755,1.83136511,47422.0,47421.0,0.00079552]
[1641072416001,1.80970153,47422.0,47421.0,0.00079552]
[1641072416902,2.20117204,47422.0,47421.0,0.00079552]
[1641072417800,1.90971243,47422.0,47421.0,0.00079552]
[1641072418001,2.25553492,47422.0,47421.0,0.00079552]
[1641072418204,1.73793346,47422.0,47421.0,0.00079552]
[1641072418402,1.92793346,47422.0,47421.0,0.00072265]
[1641072418601,1.78013346,47422.0,47421.0,0.00072265]
[1641072418802,1.80119027,47422.0,47421.0,0.00072265]
[1641072419003,1.78232039,47422.0,47421.0,0.00072265]
[1641072419406,2.45052636,47422.0,47421.0,0.00072265]
[1641072419850,2.47001237,47422.0,47421.0,0.00072265]
[1641072420051,2.49895556,47422.0,47421.0,0.00072265]
[1641072420952,3.33540163,47422.0,47421.0,0.00072265]
[1641072421956,3.35578944,47422.0,47421.0,0.00072265]
[1641072422153,2.76765649,47422.0,47421.0,0.00072265]
[1641072422353,2.81765649,47422.0,47421.0,0.00072265]
[1641072422753,2.83710478,47422.0,47421.0,0.00072265]
[1641072422953,2.81671697,47422.0,47421.0,0.00072265]
[1641072423800,2.83829085,47422.0,47421.0,0.00072265]
[1641072423999,2.79726868,47422.0,47421.0,0.00072265]
[1641072424800,2.81806768,47422.0,47421.0,0.00072265]
[1641072425001,1.98206258,47422.0,47421.0,0.00072265]
[1641072425201,3.66090014,47422.0,47421.0,0.00072265]
[1641072425803,3.16357369,47422.0,47421.0,0.00072265]
[1641072426002,3.14277469,47422.0,47421.0,0.00072265]
[1641072426603,3.14400439,47422.0,47421.0,0.00072265]
[1641072426804,3.19857858,47422.0,47421.0,0.00072265]
[1641072427004,3.17930508,47422.0,47421.0,0.00072265]
[1641072427257,0.05274965,47419.0,47416.0,0.00022]
[1641072427451,1.58571772,47417.0,47416.0,0.00022]
[1641072427653,1.68571772,47417.0,47416.0,0.00022]
[1641072428653,2.84615056,47417.0,47416.0,0.00022]
[1641072428853,2.86808993,47417.0,47416.0,0.00022]
[1641072429657,2.84615056,47417.0,47416.0,0.00022]
[1641072429859,2.86794643,47417.0,47416.0,0.00022]
[1641072430056,2.91794643,47417.0,47416.0,0.00022]
[1641072431102,2.96014643,47417.0,47416.0,0.00022]
[1641072431502,2.97989053,47417.0,47416.0,0.00022]
[1641072431701,2.95809466,47417.0,47416.0,0.00022]
[1641072431906,1.38,47416.0,47415.0,0.00044]
[1641072432202,2.24416962,47416.0,47415.0,0.00060432]
[1641072432405,2.24416962,47416.0,47414.0,0.00044]
[1641072432602,1.58572574,47415.0,47414.0,0.00044]
[1641072432901,1.62792574,47415.0,47414.0,0.00044]
[1641072433101,3.48408393,47415.0,47414.0,0.00033]
[1641072433304,1.38,47414.0,47413.0,0.00011]
[1641072433502,1.62789065,47414.0,47413.0,0.00011]
[1641072433705,1.38,47413.0,47408.0,0.00044]
[1641072433904,1.62789065,47413.0,47408.0,0.00044]
[1641072434103,1.72789065,47413.0,47408.0,0.00044]
[1641072434305,2.02754069,47413.0,47408.0,0.00044]
[1641072434504,1.58569065,47412.0,47408.0,0.00044]
[1641072434753,1.50664965,47412.0,47408.0,0.00044]
[1641072434955,1.58569065,47410.0,47408.0,0.00044]
[1641072435155,1.72789065,47410.0,47408.0,0.00044]
[1641072435355,2.17525335,47410.0,47407.0,0.00044]
[1641072435553,1.651241,47408.0,47407.0,0.00044]
[1641072435752,2.26320694,47408.0,47407.0,0.00044]
[1641072435953,2.36320694,47408.0,47407.0,0.00044]
[1641072436156,1.38011,47403.0,47401.0,0.00133]
[1641072436354,1.62802027,47403.0,47401.0,0.00133]
[1641072436553,1.72802027,47403.0,47402.0,0.00056735]
[1641072436754,1.72802027,47403.0,47397.0,0.00011]
[1641072436953,0.052768,47401.0,47387.0,0.4281607]
[1641072437151,0.56782196,47401.0,47398.0,7.304e-05]
[1641072437353,0.163441,47400.0,47398.0,7.304e-05]
[1641072437752,0.59425086,47395.0,47389.0,0.00023736]
[1641072437952,0.30678529,47391.0,47389.0,0.00023736]
[1641072438151,0.052767,47390.0,47389.0,0.00023736]
[1641072438408,0.052767,47390.0,47388.0,0.04802261]
[1641072438601,0.052767,47390.0,47389.0,0.00023736]
[1641072440403,0.262767,47390.0,47389.0,0.00023736]
[1641072443550,0.26287719,47390.0,47389.0,0.00023736]
[1641072446598,0.26287719,47390.0,47388.0,0.00025561]
[1641072448103,0.31564918,47390.0,47388.0,0.00025561]
[1641072448301,0.745546,47389.0,47388.0,0.00025561]
[1641072448800,0.866787,47389.0,47388.0,0.00025561]
[1641072449002,0.88557128,47389.0,47388.0,0.00025561]
[1641072449203,0.76433028,47389.0,47388.0,0.00025561]
[1641072449846,0.12433028,47389.0,47388.0,0.00025561]
[1641072450046,0.14477976,47389.0,47388.0,0.00025561]
[1641072450246,0.04452978,47389.0,47388.0,0.00025561]
[1641072451348,0.0240803,47389.0,47388.0,0.00025561]
[1641072451751,0.1740803,47389.0,47388.0,0.00025561]
[1641072452547,0.5140803,47389.0,47388.0,0.00025561]
[1641072452951,0.7353213,47389.0,47388.0,0.00025561]
[1641072453409,0.2453213,47389.0,47388.0,0.00025561]
[1641072454002,0.1453213,47389.0,47388.0,0.00025561]
[1641072454202,0.14543068,47389.0,47388.0,0.00025561]
[1641072454607,0.29543068,47389.0,47388.0,0.00025561]
[1641072455804,0.14543068,47389.0,47388.0,0.00025561]
[1641072456004,0.02418968,47389.0,47388.0,0.00025561]
[1641072456807,0.17418968,47389.0,47388.0,0.00025561]
[1641072458853,0.29543068,47389.0,47388.0,0.00025561]
[1641072460054,0.00010938,47389.0,47388.0,0.00025561]
[1641072461304,0.00010938,47389.0,47388.0,0.59999066]
[1641072461504,0.00010938,47389.0,47388.0,0.77736113]
[1641072464308,0.00010938,47389.0,47388.0,1.18636496]
[1641072464505,0.00010938,47389.0,47388.0,1.18642117]
[1641072465457,0.00010938,47389.0,47388.0,0.82736113]
[1641072467153,0.00010938,47389.0,47388.0,0.77736113]
[1641072470004,0.00010938,47389.0,47388.0,2.66045086]
[1641072470206,0.00010938,47389.0,47388.0,0.77736113]
[1641072470606,0.00010938,47389.0,47388.0,1.37700452]
[1641072471606,0.00010938,47389.0,47388.0,0.77736113]
[1641072472012,0.00010938,47389.0,47388.0,2.54431472]
[1641072472262,0.00010938,47389.0,47388.0,0.93837839]
[1641072472263,0.51340712,47389.0,47388.0,0.93837839]
[1641072472463,0.51340712,47389.0,47388.0,0.59964339]
[1641072472662,0.23680938,47389.0,47388.0,0.59964339]
[1641072472864,0.23680938,47389.0,47387.0,0.00044]
[1641072473063,1.89329774,47388.0,47386.0,0.25007079]
[1641072473264,1.38,47386.0,47384.0,0.60467391]
[1641072473462,2.04329774,47387.0,47384.0,0.60434391]
[1641072473463,1.69471468,47385.0,47384.0,0.60434391]
[1641072473664,1.79471468,47385.0,47384.0,0.60434391]
[1641072473866,1.79992438,47385.0,47384.0,7.304e-05]
[1641072474363,1.38,47384.0,47382.0,0.00033]
[1641072474564,1.62791948,47383.0,47382.0,0.00033]
[1641072474968,1.38,47382.0,47379.0,0.00044]
[1641072475165,1.793441,47382.0,47379.0,0.00044]
[1641072475566,2.85353573,47382.0,47381.0,0.00133]
[1641072476012,2.85353573,47382.0,47381.0,0.00122]
[1641072476211,2.8727656,47382.0,47381.0,0.00122]
[1641072476610,3.69752794,47382.0,47381.0,0.00122]
[1641072477209,3.71716437,47382.0,47381.0,0.00122]
[1641072477414,3.6979345,47382.0,47381.0,0.00122]
[1641072478012,3.7479345,47382.0,47381.0,0.00122]
[1641072478413,3.7669599,47382.0,47381.0,0.00122]
[1641072478612,3.75253317,47382.0,47381.0,0.00122]
[1641072479413,3.77128326,47382.0,47381.0,0.00122]
[1641072479653,2.92749552,47382.0,47381.0,0.00122]
[1641072479953,4.12734503,47382.0,47381.0,0.00122]
[1641072480356,6.63144099,47382.0,47381.0,0.00122]
[1641072480556,5.92134626,47382.0,47381.0,0.00122]
[1641072480756,5.58134626,47382.0,47381.0,0.00122]
[1641072481158,3.84167392,47382.0,47381.0,0.00122]
[1641072481560,3.86234367,47382.0,47381.0,0.00122]
[1641072482157,5.06221117,47382.0,47381.0,0.00122]
[1641072482358,5.08081974,47382.0,47381.0,0.00122]
[1641072482559,4.01028249,47382.0,47381.0,0.00122]
[1641072482761,1.3830046,47382.0,47381.0,0.00122]
[1641072482959,0.13984957,47382.0,47381.0,0.00122]
[1641072483160,0.59984957,47382.0,47381.0,0.00122]
[1641072483412,0.61988315,47382.0,47381.0,0.00122]
[1641072483704,0.14127458,47382.0,47381.0,0.00122]
[1641072484302,1.25127458,47382.0,47381.0,0.00122]
[1641072484505,1.231241,47382.0,47381.0,0.00122]
[1641072485306,1.24979705,47382.0,47381.0,0.00122]
[1641072485705,1.24990076,47382.0,47381.0,0.00122]
[1641072486305,1.37076697,47382.0,47381.0,0.00122]
[1641072486506,1.40221092,47382.0,47381.0,0.00122]
[1641072486710,1.88052355,47382.0,47381.0,0.00122]
[1641072487151,2.15052355,47382.0,47381.0,0.00122]
[1641072487549,1.40221092,47382.0,47381.0,0.00122]
[1641072487749,1.25221092,47382.0,47381.0,0.00122]
[1641072488048,1.40121053,47382.0,47381.0,0.00122]
[1641072488250,2.33048551,47382.0,47381.0,0.00122]
[1641072488451,2.24715344,47382.0,47381.0,0.00122]
[1641072488752,1.71801264,47382.0,47378.0,0.00056802]
[1641072488952,2.78059528,47379.0,47372.0,0.00052802]
[1641072489151,0.121241,47378.0,47372.0,0.00052802]
[1641072489353,0.30170563,47376.0,47372.0,0.00052802]
[1641072489551,1.01447402,47373.0,47372.0,0.00052802]
[1641072489750,1.13571502,47373.0,47372.0,0.00052802]
[1641072489950,1.13571502,47373.0,47372.0,0.00074711]
[1641072490153,1.68571502,47373.0,47372.0,0.00074711]
[1641072490351,1.70616713,47373.0,47372.0,0.00074711]
[1641072490552,1.63001517,47373.0,47372.0,0.00074711]
[1641072491199,1.151241,47373.0,47372.0,0.00074711]
[1641072491400,1.38112676,47373.0,47372.0,0.00074711]
[1641072491597,1.46560256,47373.0,47372.0,0.00074711]
[1641072491797,1.9201506,47373.0,47372.0,0.00074711]
[1641072492400,1.93927965,47373.0,47372.0,0.00074711]
[1641072492598,1.85480385,47373.0,47372.0,0.00074711]
[1641072493000,1.93929304,47373.0,47372.0,0.00074711]
[1641072493203,1.90027823,47373.0,47372.0,0.00074711]
[1641072493400,1.919405,47373.0,47372.0,0.00074711]
[1641072494100,2.369405,47373.0,47372.0,0.00074711]
[1641072494301,2.39247823,47373.0,47372.0,0.00074711]
[1641072494502,2.41339221,47373.0,47372.0,0.00074711]
[1641072494761,1.87890302,47373.0,47372.0,0.00074711]
[1641072494960,1.96339221,47373.0,47372.0,0.00074711]
[1641072495360,1.98289232,47373.0,47372.0,0.00074711]
[1641072495562,1.96197834,47373.0,47372.0,0.00074711]
[1641072496261,1.96207476,47373.0,47372.0,0.00074711]
[1641072496462,1.98140343,47373.0,47372.0,0.00074711]
[1641072496666,1.96190332,47373.0,47372.0,0.00074711]
[1641072497462,1.98275909,47373.0,47372.0,0.00074711]
[1641072497662,1.96343042,47373.0,47372.0,0.00074711]
[1641072499003,1.98331456,47373.0,47372.0,0.00074711]
[1641072499204,1.96245879,47373.0,47372.0,0.00074711]
[1641072499406,1.98208465,47373.0,47372.0,0.00074711]
[1641072499608,1.96220051,47373.0,47372.0,0.00074711]
[1641072500007,1.50765425,47373.0,47372.0,0.00074711]
[1641072500304,1.42316328,47373.0,47372.0,0.00074711]
[1641072500506,1.52810411,47373.0,47372.0,0.00074711]
[1641072500707,1.50847825,47373.0,47372.0,0.00074711]
[1641072501007,0.35178728,47373.0,47372.0,0.00074711]
[1641072501208,0.23054628,47373.0,47372.0,0.00074711]
[1641072501614,0.23974767,47373.0,47372.0,0.00074711]
[1641072502656,0.21870642,47373.0,47372.0,0.00074711]
[1641072505255,0.21870642,47373.0,47372.0,0.28412494]
[1641072505462,0.21870642,47373.0,47372.0,0.94145854]
[1641072505657,0.21870642,47373.0,47372.0,2.15065854]
[1641072505921,0.21870642,47373.0,47372.0,2.35065854]
[1641072506113,0.21870642,47373.0,47372.0,2.45065854]
[1641072506313,0.21870642,47373.0,47372.0,2.50343354]